bitfinex/quotes_SOLUSD_20250514
["timestamp","ask_amount","ask_price","bid_price","bid_amount"]
[1747224264381,17.67361481,180.64,180.63,1.42771317]
[1747224265590,5.53587245,180.64,180.63,1.42771317]
[1747224265769,17.67361481,180.64,180.63,1.42771317]
[1747224265970,29.81135717,180.64,180.63,1.42771317]
[1747224266894,43.6510383,180.64,180.56,44.6]
[1747224267192,12.13774236,180.59,180.56,44.6]
[1747224267372,12.13774236,180.58,180.56,26.0]
[1747224267699,12.13774236,180.58,180.57,1.4404202]
[1747224267900,12.13774236,180.59,180.57,1.4404202]
[1747224268110,19.37555358,180.64,180.57,1.4404202]
[1747224268282,5.53679198,180.61,180.57,1.4404202]
[1747224268469,17.67453434,180.61,180.57,1.4404202]
[1747224268803,17.67453434,180.61,180.58,1.4404202]
[1747224269669,5.53679198,180.61,180.59,1.4404202]
[1747224269875,17.67453434,180.61,180.59,1.4404202]
[1747224270873,17.67453434,180.61,180.6,1.4404202]
[1747224272378,5.53679198,180.61,180.6,1.4404202]
[1747224274306,17.67453434,180.61,180.6,1.4404202]
[1747224276402,5.53679198,180.61,180.6,1.4404202]
[1747224278681,17.67422779,180.62,180.6,1.4404202]
[1747224278882,17.67422779,180.62,180.61,1.4404202]
[1747224280279,5.53648543,180.62,180.61,1.4404202]
[1747224280633,13.83968113,180.64,180.61,1.4404202]
[1747224280634,5.53587245,180.64,180.61,1.4404202]
[1747224281128,5.53587245,180.64,180.62,1.4404202]
[1747224282039,5.53587245,180.64,180.63,1.4404202]
[1747224282730,17.67361481,180.64,180.63,1.4404202]
[1747224287203,31.51329594,180.64,180.56,44.58]
[1747224287413,5.53587245,180.64,180.56,44.58]
[1747224287611,5.53587245,180.64,180.57,0.28432314]
[1747224287804,5.53587245,180.64,180.57,1.72591281]
[1747224288116,12.13774236,180.62,180.57,1.72591281]
[1747224288311,12.13774236,180.64,180.57,1.72591281]
[1747224288517,12.13774236,180.65,180.57,7.26389968]
[1747224288725,12.13774236,180.65,180.57,5.82231001]
[1747224288921,12.13774236,180.64,180.57,0.28432314]
[1747224289204,12.13774236,180.64,180.56,44.58]
[1747224289530,12.13774236,180.6,180.56,44.58]
[1747224289703,12.13774236,180.61,180.56,44.58]
[1747224289909,12.13774236,180.62,180.56,44.58]
[1747224290411,19.37233629,180.67,180.56,44.58]
[1747224290603,12.13774236,180.62,180.56,44.58]
[1747224291808,12.13774236,180.62,180.57,18.58]
[1747224292408,5.53679198,180.61,180.57,18.58]
[1747224292626,5.53652204,180.62,180.57,18.58]
[1747224293142,5.5352596,180.66,180.57,18.58]
[1747224293304,12.13774236,180.65,180.58,0.28432314]
[1747224294047,12.13774236,180.64,180.58,0.28432314]
[1747224294447,5.53617892,180.63,180.58,0.28432314]
[1747224295501,12.13774236,180.64,180.58,0.28432314]
[1747224296551,12.13774236,180.65,180.58,5.82200457]
[1747224297613,5.53587245,180.64,180.58,5.82200457]
[1747224299540,35.23160061,180.7,180.59,26.0]
[1747224299742,5.53434058,180.69,180.62,1.5797]
[1747224299912,12.13774236,180.67,180.62,1.5797]
[1747224300239,12.13774236,180.68,180.62,1.5797]
[1747224300415,12.13774236,180.67,180.62,1.5797]
[1747224301414,12.13774236,180.64,180.62,1.5797]
[1747224301606,5.53617892,180.63,180.62,1.5797]
[1747224301805,17.67392128,180.63,180.62,1.5797]
[1747224302040,17.67392128,180.63,180.6,44.56]
[1747224302236,17.67392128,180.63,180.6,18.56]
[1747224303039,12.13774236,180.61,180.57,27.615]
[1747224303251,12.13774236,180.61,180.57,46.175]
[1747224303751,17.67473251,180.61,180.57,46.175]
[1747224304245,13.83918224,180.65,180.57,46.175]
[1747224304246,17.67428634,180.62,180.57,46.175]
[1747224304611,5.53623753,180.63,180.57,51.71298296]
[1747224305116,13.83687864,180.68,180.58,0.28432314]
[1747224305117,17.67349275,180.65,180.58,0.28432314]
[1747224305545,12.13774236,180.64,180.58,0.28432314]
[1747224308713,17.67147043,180.71,180.65,31.81978949]
[1747224309220,17.67147043,180.71,180.65,26.28432314]
[1747224309942,17.67147043,180.71,180.65,31.81978583]
[1747224310125,17.67147043,180.71,180.65,26.28432314]
[1747224310458,17.67147043,180.71,180.65,31.81985127]
[1747224310812,5.53372807,180.71,180.65,26.28432314]
[1747224311010,17.67147043,180.71,180.65,26.28432314]
[1747224311627,5.53372807,180.71,180.65,26.28432314]
[1747224311844,5.53372807,180.71,180.65,31.81985682]
[1747224313053,13.83246276,180.74,180.65,31.81985682]
[1747224313224,5.53219738,180.76,180.69,1.504]
[1747224313425,12.13774236,180.78,180.71,26.0]
[1747224313624,5.53097345,180.8,180.73,26.0]
[1747224314152,12.13774236,180.79,180.73,26.0]
[1747224314526,5.53097345,180.8,180.74,0.28432314]
[1747224314737,5.53097345,180.8,180.75,1.6015]
[1747224315047,5.53097345,180.8,180.76,18.56]
[1747224315849,17.66840241,180.82,180.76,18.56]
[1747224316426,12.13774236,180.81,180.76,18.56]
[1747224317249,12.13774236,180.82,180.76,18.56]
[1747224317422,5.53066755,180.81,180.76,18.56]
[1747224318047,12.13774236,180.79,180.76,18.56]
[1747224318754,12.13774236,180.8,180.76,18.56]
[1747224319134,12.13774236,180.78,180.76,18.56]
[1747224319855,19.35412518,180.84,180.76,18.56]
[1747224320031,12.13774236,180.81,180.76,18.56]
[1747224321565,5.53097345,180.8,180.76,18.56]
[1747224321951,12.13774236,180.79,180.76,18.56]
[1747224322629,12.13774236,180.78,180.76,18.56]
[1747224323261,12.13774236,180.79,180.76,18.56]
[1747224323754,5.53158535,180.78,180.76,18.56]
[1747224324155,17.66932771,180.78,180.75,1.6015]
[1747224327457,5.53158535,180.78,180.75,1.6015]
[1747224329250,12.13774236,180.82,180.76,26.0]
[1747224329457,13.82566742,180.83,180.76,26.0]
[1747224329634,25.96340978,180.83,180.76,26.0]
[1747224331159,13.82566742,180.83,180.76,26.0]
[1747224331630,25.96340978,180.83,180.76,26.0]
[1747224331832,12.13774236,180.84,180.78,26.0]
[1747224332147,5.52944429,180.85,180.78,26.0]
[1747224332367,31.49079737,180.85,180.78,26.0]
[1747224332661,5.52822157,180.89,180.8,0.28432314]
[1747224332836,17.66596393,180.89,180.81,1.6527]
[1747224333246,12.13774236,180.88,180.81,1.6527]
[1747224333627,5.52883286,180.87,180.81,1.6527]
[1747224334435,12.13774236,180.86,180.81,1.6527]
[1747224334639,12.13774236,180.85,180.81,1.6527]
[1747224335564,5.52975005,180.84,180.81,1.6527]
[1747224337855,12.13774236,180.87,180.81,1.6527]
[1747224338228,12.13774236,180.86,180.81,1.6527]
[1747224338454,19.3477059,180.9,180.81,1.6527]
[1747224338843,12.13774236,180.86,180.81,1.6527]
[1747224339361,19.3477059,180.9,180.81,1.6527]
[1747224339543,12.13774236,180.88,180.81,1.6527]
[1747224339865,5.52883286,180.87,180.81,7.1833384]
[1747224340834,5.52883286,180.87,180.81,1.6527]
[1747224341243,17.66657522,180.87,180.81,1.6527]
[1747224343259,5.52883286,180.87,180.82,0.28432314]
[1747224345673,5.52883286,180.87,180.82,26.28432314]
[1747224345856,5.5285272,180.88,180.82,26.28432314]
[1747224346245,19.34468444,180.93,180.82,38.163688]
[1747224346653,12.13774236,180.92,180.82,38.163688]
[1747224347445,5.52761041,180.91,180.82,38.163688]
[1747224347647,5.52702609,180.93,180.83,1.6315]
[1747224347881,6.52675487,180.94,180.84,0.28432314]
[1747224348044,1.0,180.94,180.88,26.0]
[1747224348252,1.0,180.94,180.89,0.28432314]
[1747224348456,6.52675905,180.94,180.89,0.28432314]
[1747224349077,1.0,180.94,180.9,1.5249]
[1747224349256,1.0,180.94,180.91,18.80432314]
[1747224350156,1.0,180.94,180.91,24.3318974]
[1747224351375,1.0,180.94,180.91,18.80432314]
[1747224354271,6.52676862,180.94,180.9,20.0449]
[1747224355057,18.66451098,180.94,180.9,20.0449]
[1747224355383,12.13774236,180.92,180.9,18.52]
[1747224355752,12.13774236,180.92,180.87,18.52]
[1747224355753,5.52791597,180.9,180.87,18.52]
[1747224357992,5.52791597,180.9,180.85,46.0808]
[1747224357993,12.13774236,180.89,180.85,46.0808]
[1747224358491,17.66565833,180.9,180.85,46.0808]
[1747224358997,5.52791597,180.9,180.85,46.0808]
[1747224359484,5.52768624,180.91,180.85,51.61017991]
[1747224359684,12.13774236,180.92,180.86,0.28432314]
[1747224359917,12.13774236,180.92,180.86,5.81328448]
[1747224360091,17.66481869,180.93,180.86,5.81328448]
[1747224360292,18.66452968,180.94,180.86,5.81328448]
[1747224361398,17.66497398,180.93,180.86,5.81328448]
[1747224361708,12.13774236,180.91,180.88,26.0]
[1747224362009,12.13774236,180.9,180.85,20.0808]
[1747224362299,12.13774236,180.9,180.86,26.0]
[1747224362605,12.13774236,180.89,180.86,26.0]
[1747224362973,12.13774236,180.88,180.85,46.0808]
[1747224363303,12.13774236,180.88,180.85,27.5608]
[1747224363604,5.52883286,180.87,180.85,27.5608]
[1747224364492,13.81940305,180.91,180.85,27.5608]
[1747224364695,12.13774236,180.88,180.85,1.5608]
[1747224364890,13.81940305,180.91,180.85,1.5608]
[1747224365195,12.13774236,180.88,180.85,1.5608]
[1747224366400,12.13774236,180.89,180.85,1.5608]
[1747224366604,12.13774236,180.9,180.85,1.5608]
[1747224366973,17.66547337,180.91,180.85,7.09014651]
[1747224367600,1.0,180.94,180.88,26.0]
[1747224367769,12.13774236,180.93,180.88,26.0]
[1747224367969,13.13774236,180.94,180.88,26.0]
[1747224368698,18.66451294,180.94,180.88,0.28432314]
[1747224368899,12.13774236,180.93,180.88,0.28432314]
[1747224369402,12.13774236,180.9,180.85,27.5608]
[1747224369775,12.13774236,180.91,180.85,27.5608]
[1747224370801,17.6655303,180.91,180.85,33.09015329]
[1747224371097,5.52729111,180.93,180.86,0.28432314]
[1747224371310,13.13774236,180.94,180.86,0.28432314]
[1747224371475,12.13774236,180.93,180.86,0.28432314]
[1747224371875,12.13774236,180.92,180.86,0.28432314]
[1747224372078,12.13774236,180.93,180.86,0.28432314]
[1747224372298,1.0,180.94,180.86,0.28432314]
[1747224372593,1.0,180.94,180.88,0.14216157]
[1747224372772,1.0,180.94,180.89,5.52822157]
[1747224372973,1.0,180.94,180.91,0.28432314]
[1747224375208,1.0,180.94,180.91,0.14216157]
[1747224375510,18.66444958,180.94,180.9,20.0562]
[1747224375681,12.13774236,180.93,180.9,20.0562]
[1747224376381,17.66481741,180.93,180.9,20.0562]
[1747224377004,5.52707505,180.93,180.9,20.0562]
[1747224377781,5.52707505,180.93,180.9,20.0362]
[1747224379484,6.52678815,180.94,180.9,20.0362]
[1747224380412,1.0,180.94,180.9,25.56404781]
[1747224380892,1.0,180.94,180.9,20.0362]
[1747224381601,1.0,180.94,180.9,25.56406216]
[1747224381985,1.0,180.94,180.91,0.28432314]
[1747224382517,1.0,180.94,180.92,5.52730488]
[1747224383086,1.0,180.94,180.91,5.81182837]
[1747224384523,1.0,180.94,180.93,31.81132253]
[1747224385679,2.7949917,181.08,180.97,26.0]
[1747224385879,12.13774236,181.02,180.98,18.5]
[1747224388008,12.13774236,181.03,180.98,24.02547056]
[1747224388219,12.13774236,181.03,180.98,18.5]
[1747224388591,17.66188053,181.03,180.98,18.5]
[1747224389415,5.52413817,181.03,180.98,18.5]
[1747224389615,17.66188053,181.03,180.98,18.5]
[1747224389824,12.13774236,181.01,180.98,18.5]
[1747224392417,17.66203999,181.02,180.98,18.5]
[1747224393413,12.13774236,181.01,180.98,18.5]
[1747224394212,12.13774236,181.03,180.98,18.5]
[1747224394420,5.52333609,181.05,180.98,18.5]
[1747224394609,12.13774236,181.02,180.98,18.5]
[1747224395234,5.52333609,181.05,180.98,18.5]
[1747224395404,12.13774236,181.02,180.98,18.5]
[1747224396627,12.13774236,181.02,180.98,24.02538074]
[1747224396828,5.52303103,181.06,180.98,24.02538074]
[1747224397130,12.13774236,181.06,180.98,24.02538074]
[1747224397715,12.13774236,181.05,180.98,24.02538074]
[1747224399138,17.66090215,181.06,180.98,24.02538074]
[1747224401028,12.13774236,181.05,180.98,24.02538074]
[1747224402010,17.66135719,181.05,180.98,24.02538074]
[1747224402931,5.52242102,181.08,181.01,26.0]
[1747224403134,5.52222166,181.09,181.02,0.28432314]
[1747224403305,12.13774236,181.1,181.02,0.28432314]
[1747224403823,19.32527192,181.11,181.01,32.0246]
[1747224404217,19.32527192,181.11,181.01,26.0]
[1747224404218,12.13774236,181.06,181.01,26.0]
[1747224404953,12.13774236,181.06,181.02,26.0]
[1747224406632,5.52333609,181.05,181.02,26.0]
[1747224408037,12.13774236,181.04,180.99,1.6548]
[1747224408346,12.13774236,181.01,180.98,44.48]
[1747224408515,12.13774236,181.0,180.96,18.48]
[1747224408711,12.13774236,181.0,180.96,44.48]
[1747224409643,5.52516713,180.99,180.96,18.48]
[1747224409939,5.52516713,180.99,180.96,44.48]
[1747224410313,12.13774236,180.98,180.95,1.5911]
[1747224410641,12.13774236,180.97,180.94,18.48]
[1747224410941,12.13774236,180.95,180.92,18.48]
[1747224411744,17.66442426,180.95,180.92,18.48]
[1747224412126,5.5266819,180.95,180.92,18.48]
[1747224412737,17.66442426,180.95,180.92,18.48]
[1747224412911,17.66442426,180.95,180.92,26.0]
[1747224415333,12.13774236,180.94,180.88,206.92216157]
[1747224415643,12.13774236,180.94,180.89,26.0]
[1747224415942,12.13774236,180.94,180.89,44.48]
[1747224416111,17.66460427,180.94,180.89,44.48]
[1747224417047,12.13774236,180.9,180.84,18.48]
[1747224417345,12.13774236,180.89,180.87,26.0]
[1747224417644,12.13774236,180.9,180.87,26.0]
[1747224418019,13.81673482,180.94,180.87,26.0]
[1747224418233,12.13774236,180.92,180.87,26.0]
[1747224418834,12.13774236,180.93,180.87,26.0]
[1747224419627,12.13774236,180.92,180.87,26.0]
[1747224420449,17.66518176,180.92,180.87,26.0]
[1747224420647,5.5263885,180.95,180.87,31.52876263]
[1747224421019,17.66413086,180.95,180.87,31.52876263]
[1747224421631,12.13774236,180.94,180.87,31.52876263]
[1747224422658,17.66464206,180.94,180.87,31.52876263]
[1747224423656,17.66464206,180.94,180.88,7.07413048]
[1747224423956,12.13774236,180.96,180.91,26.0]
[1747224424135,12.13774236,180.97,180.91,44.48]
[1747224425129,5.52608311,180.96,180.91,44.48]
[1747224425530,5.52608311,180.96,180.91,50.00759411]
[1747224425731,5.52608311,180.96,180.91,44.48]
[1747224426254,17.66382547,180.96,180.91,44.48]
[1747224426627,12.13774236,180.94,180.91,44.48]
[1747224426938,12.13774236,180.95,180.91,44.48]
[1747224427136,5.52669393,180.94,180.91,18.48]
[1747224427352,5.52577775,180.97,180.91,18.48]
[1747224427862,17.66352011,180.97,180.91,18.48]
[1747224428361,12.13774236,180.95,180.91,18.48]
[1747224428538,12.13774236,180.94,180.91,18.48]
[1747224428943,12.13774236,180.93,180.9,26.0]
[1747224429281,17.66467034,180.94,180.9,26.0]
[1747224430059,5.52692798,180.94,180.9,26.0]
[1747224430264,17.66467034,180.94,180.9,26.0]
[1747224430569,17.66419936,180.95,180.9,26.0]
[1747224430729,13.81258429,181.0,180.9,31.52780596]
[1747224430929,12.13774236,180.97,180.9,31.52780596]
[1747224431328,17.6637883,180.97,180.9,31.52780596]
[1747224432269,19.33744616,181.0,180.9,31.52780596]
[1747224432477,12.13774236,180.97,180.9,31.52780596]
[1747224433340,17.66368143,180.97,180.9,31.52780596]
[1747224434070,5.52486187,181.0,180.91,0.28432314]
[1747224434240,12.13774236,180.99,180.91,0.28432314]
[1747224435155,5.52547242,180.98,180.92,5.52730488]
[1747224436883,19.3342356,181.03,180.92,5.52730488]
[1747224437049,12.13774236,181.0,180.92,5.52730488]
[1747224437370,12.13774236,181.0,180.93,0.28432314]
[1747224437572,12.13774236,181.01,180.94,1.5239]
[1747224437738,12.13774236,181.01,180.95,18.48]
[1747224437935,12.13774236,181.0,180.95,18.48]
[1747224438559,12.13774236,180.99,180.95,18.48]
[1747224439292,17.66305378,180.99,180.95,18.48]
[1747224440298,17.66305378,180.99,180.93,5.81121773]
[1747224440299,12.13774236,180.97,180.92,18.48]
[1747224440596,12.13774236,180.95,180.92,36.96]
[1747224440807,12.13774236,180.95,180.92,18.48]
[1747224441800,5.52669393,180.94,180.92,18.48]
[1747224442603,13.81291784,180.99,180.91,18.48]
[1747224442767,12.13774236,180.97,180.89,33.09656588]
[1747224442962,12.13774236,180.97,180.9,18.48]
[1747224443277,17.66321478,180.98,180.93,26.0]
[1747224447588,12.13774236,180.96,180.93,26.0]
[1747224448386,5.52547242,180.98,180.93,26.0]
[1747224448591,17.66321478,180.98,180.93,26.0]
[1747224449481,12.13774236,180.97,180.93,26.0]
[1747224450670,17.663724,180.97,180.93,26.0]
[1747224451495,17.663724,180.97,180.91,5.52757159]
[1747224451665,17.663724,180.97,180.92,26.0]
[1747224452522,12.13774236,180.98,180.92,26.0]
[1747224452812,17.66284755,181.0,180.93,31.52699939]
[1747224453174,5.52510519,181.0,180.93,31.52699939]
[1747224454775,17.66284755,181.0,180.93,31.52699939]
[1747224455308,17.66311584,180.99,180.93,31.52699939]
[1747224455598,5.52537348,180.99,180.93,31.52699939]
[1747224456967,12.13774236,181.0,180.93,31.52699939]
[1747224456968,5.52490481,181.0,180.93,31.52699939]
[1747224457468,17.66230841,181.01,180.93,31.52699939]
[1747224458298,17.66230841,181.01,180.94,0.28432314]
[1747224459374,17.66230841,181.01,180.95,5.5263885]
[1747224459592,17.66230841,181.01,180.96,18.46]
[1747224460798,17.66230841,181.01,180.96,49.98603333]
[1747224460992,5.52456605,181.01,180.96,49.98603333]
[1747224461532,12.13774236,181.02,180.96,49.98603333]
[1747224461704,17.66176091,181.03,180.96,49.98603333]
[1747224462917,17.66127716,181.05,180.99,26.0]
[1747224463602,17.66127716,181.05,180.97,5.80997427]
[1747224463898,17.66127716,181.05,180.98,26.0]
[1747224464298,12.13774236,181.04,180.99,26.0]
[1747224465126,12.13774236,181.01,180.96,44.46]
[1747224466122,5.52486187,181.0,180.96,44.46]
[1747224468409,5.52364118,181.04,180.96,44.46]
[1747224468609,12.13774236,181.02,180.96,44.46]
[1747224468810,5.52364118,181.04,180.96,44.46]
[1747224469015,12.13774236,181.02,180.96,44.46]
[1747224470334,5.52455665,181.01,180.96,44.46]
[1747224471635,5.52455665,181.01,180.96,49.98600046]
[1747224471847,17.6620293,181.02,180.96,49.98600046]
[1747224472049,5.52400706,181.03,180.96,49.98600046]
[1747224473540,17.66174942,181.03,180.96,49.98600046]
[1747224474247,12.13774236,181.02,180.96,44.46]
[1747224475650,5.52455665,181.01,180.96,44.46]
[1747224479350,12.13774236,181.06,180.99,26.0]
[1747224480050,17.6610296,181.06,180.99,31.52503006]
[1747224480257,12.13774236,181.05,181.01,26.0]
[1747224480567,12.13774236,181.06,181.01,26.0]
[1747224480943,26.0,181.12,181.02,44.44]
[1747224480944,12.13774236,181.08,181.02,44.44]
[1747224481137,12.13774236,181.1,181.02,44.44]
[1747224481743,5.52120141,181.12,181.02,44.44]
[1747224481943,12.13774236,181.09,181.03,5.5239463]
[1747224482363,17.65986702,181.09,181.02,44.44]
[1747224482660,12.13774236,181.09,181.02,49.96422974]
[1747224482859,17.66007286,181.09,181.02,49.96422974]
[1747224483077,17.66007286,181.09,181.02,44.44]
[1747224483436,12.13774236,181.08,181.02,44.44]
[1747224483637,12.13774236,181.07,181.02,44.44]
[1747224484166,5.52303103,181.06,181.02,44.44]
[1747224486373,5.52272601,181.07,181.02,44.44]
[1747224488248,5.52242102,181.08,181.02,44.44]
[1747224488760,5.52242102,181.08,181.02,49.96416219]
[1747224489371,5.5205918,181.14,181.03,0.28432314]
[1747224489578,12.13774236,181.12,181.03,0.28432314]
[1747224489781,5.5205918,181.14,181.04,1.5763]
[1747224490478,5.5205918,181.14,181.07,0.28432314]
[1747224490776,5.5205918,181.14,181.08,18.44]
[1747224491271,5.51998233,181.16,181.1,26.0]
[1747224492373,12.13774236,181.15,181.1,26.0]
[1747224492755,12.13774236,181.14,181.1,26.0]
[1747224492954,12.13774236,181.14,181.09,1.5551]
[1747224494475,5.52089659,181.13,181.09,1.5551]
[1747224494861,5.52089659,181.13,181.09,19.9751]
[1747224497356,17.65863895,181.13,181.09,19.9751]
[1747224497873,17.65863895,181.13,181.09,1.5551]
[1747224498075,17.65863895,181.13,181.09,19.9751]
[1747224498257,5.52089659,181.13,181.09,19.9751]
[1747224499564,17.65839303,181.14,181.09,19.9751]
[1747224502181,5.52065067,181.14,181.09,19.9751]
[1747224502388,12.13774236,181.16,181.09,25.49698658]
[1747224502684,5.51906838,181.19,181.09,25.49698658]
[1747224502685,12.13774236,181.17,181.09,25.49698658]
[1747224502891,12.13774236,181.16,181.09,19.9751]
[1747224503100,12.13774236,181.15,181.09,25.49718512]
[1747224503279,17.65829502,181.15,181.09,19.9751]
[1747224503586,12.13774236,181.13,181.09,19.9751]
[1747224503967,12.13774236,181.14,181.09,19.9751]
[1747224505886,19.31567328,181.2,181.09,19.9751]
[1747224506075,12.13774236,181.14,181.09,19.9751]
[1747224506484,12.13774236,181.13,181.09,19.9751]
[1747224506789,12.13774236,181.12,181.09,19.9751]
[1747224506991,12.13774236,181.12,181.09,1.5551]
[1747224507604,5.52150626,181.11,181.05,24.6727]
[1747224507777,17.65924862,181.11,181.06,44.42]
[1747224509597,19.31460735,181.21,181.07,0.28432314]
[1747224509801,12.13774236,181.17,181.07,0.28432314]
[1747224510120,19.31460735,181.21,181.07,0.28432314]
[1747224510290,12.13774236,181.17,181.07,0.28432314]
[1747224510796,12.13774236,181.15,181.07,0.28432314]
[1747224511596,19.31460735,181.21,181.08,5.52242102]
[1747224511798,12.13774236,181.15,181.09,26.0]
[1747224512181,12.13774236,181.13,181.08,18.4]
[1747224512402,12.13774236,181.12,181.08,18.4]
[1747224512590,12.13774236,181.11,181.08,18.4]
[1747224513610,12.13774236,181.17,181.08,18.4]
[1747224513790,12.13774236,181.11,181.08,18.4]
[1747224513972,19.31993817,181.16,181.08,18.4]
[1747224514173,12.13774236,181.11,181.08,18.4]
[1747224514698,12.13774236,181.11,181.07,18.4]
[1747224515502,12.13774236,181.1,181.07,18.4]
[1747224515814,12.13774236,181.08,181.05,19.9391]
[1747224515976,12.13774236,181.07,181.05,1.5391]
[1747224516175,12.13774236,181.08,181.05,1.5391]
[1747224516980,5.52202337,181.1,181.05,1.5391]
[1747224516981,12.13774236,181.09,181.05,1.5391]
[1747224517807,17.66008167,181.09,181.05,1.5391]
[1747224520509,12.13774236,181.08,181.05,1.5391]
[1747224521312,12.13774236,181.09,181.05,1.5391]
[1747224521514,12.13774236,181.08,181.05,1.5391]
[1747224522810,17.65992356,181.09,181.05,1.5391]
[1747224524705,12.13774236,181.08,181.05,1.5391]
[1747224525315,12.13774236,181.06,181.01,1.58]
[1747224525614,12.13774236,181.04,181.02,18.4]
[1747224526382,12.13774236,181.04,181.01,1.58]
[1747224526580,17.66145316,181.04,181.01,19.98]
[1747224527121,5.5237108,181.04,181.01,19.98]
[1747224531305,17.66115611,181.05,181.01,19.98]
[1747224531630,5.52341375,181.05,181.01,19.98]
[1747224531922,12.13774236,181.08,181.01,19.98]
[1747224532791,5.52283172,181.07,181.01,25.50452714]
[1747224532995,12.13774236,181.07,181.01,25.50452714]
[1747224534818,17.66062979,181.07,181.01,25.50452714]
[1747224535125,17.66011066,181.09,181.02,0.28432314]
[1747224535600,12.13774236,181.11,181.04,0.28432314]
[1747224535807,5.52089659,181.13,181.07,1.517]
[1747224536016,5.52089659,181.13,181.08,18.4]
[1747224536611,17.65863895,181.13,181.08,18.4]
[1747224537128,12.13774236,181.12,181.08,18.4]
[1747224537298,12.13774236,181.1,181.08,18.4]
[1747224537808,12.13774236,181.09,181.08,18.4]
[1747224538013,12.13774236,181.1,181.08,18.4]
[1747224540146,5.52211607,181.09,181.08,18.4]
[1747224541830,17.65985843,181.09,181.08,18.4]
[1747224544338,5.52211607,181.09,181.08,18.4]
[1747224544636,17.65985843,181.09,181.08,18.4]
[1747224549513,17.65985843,181.09,181.03,27.5845]
[1747224549721,12.13774236,181.08,181.04,18.38]
[1747224550745,5.52272601,181.07,181.04,18.38]
[1747224553749,18.38,181.15,181.04,18.38]
[1747224553750,12.13774236,181.1,181.04,23.90353899]
[1747224553939,12.13774236,181.11,181.04,23.90353899]
[1747224554448,12.13774236,181.1,181.04,23.90353899]
[1747224555046,17.65960015,181.1,181.04,23.90353899]
[1747224556043,12.13774236,181.11,181.04,23.90353899]
[1747224559123,12.13774236,181.08,181.04,18.38]
[1747224559747,5.52272601,181.07,181.04,18.38]
[1747224559945,12.13774236,181.06,181.04,18.38]
[1747224561250,17.66046837,181.07,181.04,18.38]
[1747224562247,5.52272601,181.07,181.04,18.38]
[1747224565661,17.66046837,181.07,181.04,18.38]
[1747224566019,12.13774236,181.05,180.99,1.94892314]
[1747224566258,12.13774236,181.05,181.0,18.38]
[1747224566549,12.13774236,181.05,180.99,1.6646]
[1747224566745,12.13774236,181.03,180.99,1.6646]
[1747224567046,5.52486187,181.0,180.99,18.38]
[1747224567734,5.52425146,181.02,180.99,18.38]
[1747224569156,12.13774236,181.01,180.99,18.38]
[1747224569363,5.52486187,181.0,180.99,18.38]
[1747224572058,5.52455665,181.01,180.98,18.38]
[1747224573423,17.66229901,181.01,180.96,26.0]
[1747224573761,12.13774236,181.0,180.96,26.0]
[1747224573924,5.52516713,180.99,180.96,26.0]
[1747224574560,17.66290949,180.99,180.96,26.0]
[1747224574733,12.13774236,180.98,180.93,18.36]
[1747224575040,12.13774236,180.98,180.94,18.38]
[1747224575973,13.80960942,181.04,180.94,18.38]
[1747224576258,12.13774236,180.99,180.94,18.38]
[1747224578042,5.52525363,180.99,180.94,18.38]
[1747224578352,5.52525363,180.99,180.94,23.90663204]
[1747224579157,17.66265938,181.0,180.94,23.90663204]
[1747224579356,5.52491702,181.0,180.94,23.90663204]
[1747224580872,5.52448296,181.02,180.94,23.90663204]
[1747224581042,5.52448296,181.02,180.95,0.28432314]
[1747224581043,12.13774236,181.02,180.95,0.28432314]
[1747224582552,12.13774236,181.01,180.94,18.38]
[1747224582759,12.13774236,181.0,180.94,18.38]
[1747224583131,17.66277779,181.0,180.94,23.90663023]
[1747224583558,5.52503543,181.0,180.94,23.90663023]
[1747224583947,5.5246609,181.01,180.94,23.90663023]
[1747224584262,17.66240326,181.01,180.94,23.90663023]
[1747224584565,12.13774236,181.0,180.94,23.90663023]
[1747224584868,12.13774236,181.0,180.94,18.38]
[1747224585036,17.66321478,180.98,180.94,18.38]
[1747224585740,17.66294136,180.99,180.94,18.38]
[1747224587677,12.13774236,181.0,180.94,23.90640516]
[1747224588959,17.66277867,181.0,180.94,23.90640516]